[Event "Commonwealth Open 2019"]
[Site "Delhi"]
[Date "2019.07.07"]
[Round "9.1"]
[White "Narayanan.S.L"]
[Black "Aravindh, Chithambaram Vr."]
[Result "1/2-1/2"]
[ECO "A28"]
[WhiteElo "2603"]
[BlackElo "2598"]
[Annotator "RC"]
[PlyCount "64"]
[EventDate "2019.06.30"]
[EventType "swiss"]
[EventCountry "IND"]
[SourceTitle "playchess.com"]
[Source "ChessBase"]
[SourceQuality "1"]
[TimeControl "5400+30"]

1. c4 {[%emt 0:00:00]} Nf6 {[%emt 0:00:04]} 2. Nc3 {[%emt 0:00:00]} e5 {[%emt 0:00:24]} 3. Nf3 {[%emt 0:00:00]} Nc6 {[%emt 0:00:05]} 4. e4 {[%emt 0:00:00]} Bb4 {[%emt 0:00:32]} 5. d3 {[%emt 0:00:00]} d6 {[%emt 0:00:08]} 6. a3 {[%emt 0:00:01]} Bc5 {[%emt 0:00:17]} 7. b4 {[%emt 0:00:06]} Bb6 {[%emt 0:01:08]} 8. Na4 {[%emt 0:00:08]} h6 {[%emt 0:01:00]} 9. Nxb6 {[%emt 0:01:42]} axb6 {[%emt 0:00:04]} 10. Bb2 {[%emt 0:00:15]} Bg4 {[%emt 0:16:57]} 11. Be2 {[%emt 0:02:15]} O-O {[%emt 0:03:30]} 12. Nh4 {[%emt 0:08:08]} Bxe2 {[%emt 0:20:49]} 13. Qxe2 {[%emt 0:00:06]} Nh7 {[%emt 0:00:06]} 14. Nf5 {[%emt 0:18:58]} Ne7 {[%emt 0:00:11]} 15. Nxe7+ {[%emt 0:13:40]} Qxe7 {[%emt 0:00:08]} 16. O-O {[%emt 0:00:04]} Rae8 {[%emt 0:02:20]} 17. f4 {[%emt 0:15:36]} exf4 {[%emt 0:00:36]} 18. Rxf4 {[%emt 0:01:55]} f5 {[%emt 0:00:26]} 19. Raf1 {[%emt 0:00:17]} fxe4 {[%emt 0:01:32]} 20. Rxe4 {[%emt 0:00:05]} Rxf1+ {[%emt 0:01:33]} 21. Qxf1 {[%emt 0:00:08]} Qd7 {[%emt 0:01:58]} 22. Qe2 {[%emt 0:01:32]} Rxe4 {[%emt 0:14:07]} 23. Qxe4 {[%emt 0:00:08]} c6 {[%emt 0:03:16]} 24. h4 {[%emt 0:00:48]} Nf8 {[%emt 0:00:59]} 25. Kf2 {[%emt 0:15:03]} Ne6 {[%emt 0:07:28]} 26. Ke3 {[%emt 0:00:12]} Qf7 {[%emt 0:00:29]} 27. g3 {[%emt 0:00:30]} h5 {[%emt 0:00:52]} 28. a4 {[%emt 0:00:30]} Kf8 {[%emt 0:00:30]} 29. Qf3 {[%emt 0:06:31]} Qxf3+ {[%emt 0:06:06]} 30. Kxf3 {[%emt 0:00:04]} d5 {[%emt 0:00:03]} 31. cxd5 {[%emt 0:01:24]} cxd5 {[%emt 0:00:04]} 32. Bc1 {[%emt 0:07:16]} b5 {[%emt 0:03:41] Ke4} 1/2-1/2

[Event "Commonwealth Open 2019"]
[Site "Delhi"]
[Date "2019.07.07"]
[Round "9.2"]
[White "Gupta, Abhijeet"]
[Black "Erigaisi, Arjun"]
[Result "1-0"]
[ECO "D43"]
[WhiteElo "2606"]
[BlackElo "2526"]
[Annotator "RC"]
[PlyCount "77"]
[EventDate "2019.06.30"]
[EventType "swiss"]
[EventCountry "IND"]
[SourceTitle "playchess.com"]
[Source "ChessBase"]
[SourceQuality "1"]
[TimeControl "5400+30"]

1. d4 {[%emt 0:00:00]} d5 {[%emt 0:00:00]} 2. c4 {[%emt 0:00:00]} c6 {[%emt 0:00:00]} 3. Nf3 {[%emt 0:00:00]} Nf6 {[%emt 0:00:03]} 4. Nc3 {[%emt 0:00:00]} e6 {[%emt 0:00:07]} 5. Bg5 {[%emt 0:00:00]} h6 {[%emt 0:00:12]} 6. Bh4 {[%emt 0:00:00]} dxc4 {[%emt 0:00:08]} 7. e4 {[%emt 0:00:03]} g5 {[%emt 0:00:09]} 8. Bg3 {[%emt 0:00:03]} b5 {[%emt 0:00:07]} 9. Be2 {[%emt 0:00:16]} Bb7 {[%emt 0:00:22]} 10. e5 {[%emt 0:02:48]} Nd5 {[%emt 0:00:15]} 11. Nd2 {[%emt 0:00:35]} Nd7 {[%emt 0:04:20]} 12. a4 {[%emt 0:00:32]} Qb6 {[%emt 0:03:16]} 13. axb5 {[%emt 0:05:20]} cxb5 {[%emt 0:01:54]} 14. Bf3 {[%emt 0:00:42]} Bb4 {[%emt 0:12:53]} 15. O-O {[%emt 0:19:57]} Bxc3 {[%emt 0:17:24]} 16. Bxd5 {[%emt 0:09:00]} Bxd5 {[%emt 0:18:20]} 17. bxc3 {[%emt 0:00:03]} h5 {[%emt 0:01:54]} 18. f3 {[%emt 0:05:45]} h4 {[%emt 0:01:14]} 19. Bf2 {[%emt 0:00:09]} Qc6 {[%emt 0:03:56]} 20. Be3 {[%emt 0:07:46]} g4 {[%emt 0:01:44]} 21. Bg5 {[%emt 0:06:26]} Rh5 {[%emt 0:09:07]} 22. f4 {[%emt 0:02:36]} Bxg2 {[%emt 0:00:39]} 23. Qxg4 {[%emt 0:02:57]} Bxf1 {[%emt 0:00:51]} 24. Rxf1 {[%emt 0:00:05]} h3 {[%emt 0:00:34]} 25. Rf3 {[%emt 0:01:27]} Rxg5 {[%emt 0:04:52]} 26. fxg5 {[%emt 0:21:31]} b4 {[%emt 0:08:08]} 27. g6 {[%emt 0:02:16]} fxg6 {[%emt 0:00:58]} 28. Qh4 {[%emt 0:00:13]} bxc3 {[%emt 0:04:03]} 29. Qh8+ {[%emt 0:01:45]} Ke7 {[%emt 0:00:05]} 30. Qh4+ {[%emt 0:00:05]} Ke8 {[%emt 0:00:04]} 31. Ne4 {[%emt 0:01:35]} c2 {[%emt 0:01:54]} 32. Rf1 {[%emt 0:01:45]} g5 {[%emt 0:02:12]} 33. Qxg5 {[%emt 0:08:20]} c1=Q {[%emt 0:00:08]} 34. Nd6+ {[%emt 0:01:01]} Qxd6 {[%emt 0:00:14]} 35. Qg6+ {[%emt 0:00:03]} Kd8 {[%emt 0:00:08]} 36. exd6 {[%emt 0:00:03]} Qe3+ {[%emt 0:02:48]} 37. Kh1 {[%emt 0:00:04]} Qe2 {[%emt 0:02:16]} 38. Qg8+ {[%emt 0:01:54]} Nf8 {[%emt 0:00:07]} 39. Qg5+ {[%emt 0:01:00]} 1-0

[Event "Commonwealth Open 2019"]
[Site "Delhi"]
[Date "2019.07.07"]
[Round "9.3"]
[White "Iniyan, P."]
[Black "Swapnil, S. Dhopade"]
[Result "0-1"]
[ECO "E54"]
[WhiteElo "2525"]
[BlackElo "2488"]
[Annotator "ChessBase"]
[PlyCount "108"]
[EventDate "2019.06.30"]
[EventType "swiss"]
[EventCountry "IND"]
[SourceTitle "playchess.com"]
[Source "ChessBase"]
[SourceQuality "1"]
[TimeControl "5400+30"]

1. d4 {[%emt 0:00:00]} Nf6 {[%emt 0:00:14]} 2. c4 {[%emt 0:00:06]} e6 {[%emt 0:00:04]} 3. Nc3 {[%emt 0:00:05]} Bb4 {[%emt 0:00:07]} 4. e3 {[%emt 0:00:07]} O-O {[%emt 0:01:27]} 5. Bd3 {[%emt 0:00:26]} d5 {[%emt 0:00:12]} 6. Nf3 {[%emt 0:00:06]} dxc4 {[%emt 0:00:10]} 7. Bxc4 {[%emt 0:00:26]} c5 {[%emt 0:00:06]} 8. O-O {[%emt 0:00:05]} Nc6 {[%emt 0:00:03]} 9. a3 {[%emt 0:00:23]} Ba5 {[%emt 0:00:04]} 10. h3 {[%emt 0:00:35]} Qe7 {[%emt 0:10:11]} 11. Qc2 {[%emt 0:05:36]} cxd4 {[%emt 0:23:38]} 12. exd4 {[%emt 0:00:10]} Rd8 {[%emt 0:03:02]} 13. Rd1 {[%emt 0:02:15]} Bb6 {[%emt 0:04:17]} 14. Be3 {[%emt 0:02:00]} h6 {[%emt 0:00:11]} 15. Rac1 {[%emt 0:02:13]} Bd7 {[%emt 0:00:41]} 16. Ba2 {[%emt 0:09:34]} Rac8 {[%emt 0:01:07]} 17. Bb1 {[%emt 0:03:41]} Be8 {[%emt 0:11:42]} 18. d5 {[%emt 0:03:08]} Bxe3 {[%emt 0:03:03]} 19. fxe3 {[%emt 0:00:49]} exd5 {[%emt 0:14:07]} 20. Nxd5 {[%emt 0:00:27]} Rxd5 {[%emt 0:00:37]} 21. Rxd5 {[%emt 0:00:07]} Qxe3+ {[%emt 0:00:06]} 22. Kh1 {[%emt 0:00:03]} Qxc1+ {[%emt 0:02:15]} 23. Qxc1 {[%emt 0:00:05]} Nxd5 {[%emt 0:00:02]} 24. Qc2 {[%emt 0:01:16]} Nf6 {[%emt 0:00:10]} 25. Kh2 {[%emt 0:01:46]} Bd7 {[%emt 0:01:15]} 26. Qf2 {[%emt 0:03:26]} Be6 {[%emt 0:00:33]} 27. b4 {[%emt 0:00:50]} a6 {[%emt 0:07:24]} 28. Qb6 {[%emt 0:00:26]} Rb8 {[%emt 0:00:04]} 29. Nh4 {[%emt 0:00:42]} Nd5 {[%emt 0:00:41]} 30. Qc5 {[%emt 0:00:57]} Nde7 {[%emt 0:00:49]} 31. Qc2 {[%emt 0:01:11]} g6 {[%emt 0:00:12]} 32. Qc1 {[%emt 0:03:32]} Kh7 {[%emt 0:01:07]} 33. Be4 {[%emt 0:00:11]} Rd8 {[%emt 0:00:27]} 34. Nf3 {[%emt 0:01:48]} Bf5 {[%emt 0:06:53]} 35. Qc4 {[%emt 0:03:45]} Bxe4 {[%emt 0:02:00]} 36. Qxe4 {[%emt 0:01:25]} Nd5 {[%emt 0:03:00]} 37. h4 {[%emt 0:01:06]} h5 {[%emt 0:00:39]} 38. Qc2 {[%emt 0:01:58]} Kg8 {[%emt 0:01:33]} 39. Qb2 {[%emt 0:01:53]} Rd7 {[%emt 0:00:55]} 40. Qd2 {[%emt 0:02:42]} Nf6 {[%emt 0:00:14]} 41. Qf4 {[%emt 0:00:08]} Ng4+ {[%emt 0:01:36]} 42. Kg3 {[%emt 0:00:09]} Ne7 {[%emt 0:00:42]} 43. Qb8+ {[%emt 0:03:37]} Kg7 {[%emt 0:00:02]} 44. a4 {[%emt 0:03:43]} Nf5+ {[%emt 0:00:06]} 45. Kf4 {[%emt 0:00:04]} Re7 {[%emt 0:02:12]} 46. Qd8 {[%emt 0:01:28]} Nf6 {[%emt 0:01:51]} 47. Ne5 {[%emt 0:01:33]} Nxh4 {[%emt 0:00:18]} 48. Qd4 {[%emt 0:02:08]} Nf5 {[%emt 0:00:15]} 49. Qb2 {[%emt 0:00:06]} Nd5+ {[%emt 0:00:54]} 50. Ke4 {[%emt 0:01:10]} f6 {[%emt 0:00:26]} 51. Kxd5 {[%emt 0:00:05]} Rxe5+ {[%emt 0:00:04]} 52. Kc4 {[%emt 0:00:05]} b5+ {[%emt 0:01:01]} 53. axb5 {[%emt 0:00:06]} axb5+ {[%emt 0:00:04]} 54. Kb3 {[%emt 0:00:21]} Re3+ {[%emt 0:01:20]} 0-1

[Event "Commonwealth Open 2019"]
[Site "Delhi"]
[Date "2019.07.07"]
[Round "9.4"]
[White "Lalith, Babu M R"]
[Black "Divya, Deshmukh"]
[Result "1/2-1/2"]
[ECO "E16"]
[WhiteElo "2571"]
[BlackElo "2414"]
[Annotator "ChessBase"]
[PlyCount "60"]
[EventDate "2019.06.30"]
[EventType "swiss"]
[EventCountry "IND"]
[SourceTitle "playchess.com"]
[Source "ChessBase"]
[SourceQuality "1"]
[TimeControl "5400+30"]

1. d4 {[%emt 0:00:00]} Nf6 {[%emt 0:00:00]} 2. c4 {[%emt 0:00:00]} e6 {[%emt 0:00:00]} 3. Nf3 {[%emt 0:00:00]} Bb4+ {[%emt 0:00:00]} 4. Bd2 {[%emt 0:00:00]} Qe7 {[%emt 0:00:00]} 5. g3 {[%emt 0:00:00]} Nc6 {[%emt 0:00:00]} 6. Nc3 {[%emt 0:00:03]} O-O {[%emt 0:00:57]} 7. Bg2 {[%emt 0:01:21]} d6 {[%emt 0:00:42]} 8. O-O {[%emt 0:01:23]} Bxc3 {[%emt 0:01:31]} 9. Bxc3 {[%emt 0:00:31]} Ne4 {[%emt 0:03:31]} 10. Be1 {[%emt 0:02:49]} f5 {[%emt 0:03:16]} 11. d5 {[%emt 0:02:15]} Nb8 {[%emt 0:06:14]} 12. Qc2 {[%emt 0:08:37]} e5 {[%emt 0:02:39]} 13. Nh4 {[%emt 0:05:50]} g6 {[%emt 0:09:56]} 14. Bxe4 {[%emt 0:13:26]} fxe4 {[%emt 0:00:19]} 15. Qxe4 {[%emt 0:00:08]} Bh3 {[%emt 0:00:12]} 16. Ng2 {[%emt 0:00:22]} Nd7 {[%emt 0:00:11]} 17. Bd2 {[%emt 0:00:04]} Rf5 {[%emt 0:01:51]} 18. f3 {[%emt 0:01:44]} Raf8 {[%emt 0:04:40]} 19. Bh6 {[%emt 0:05:47]} Re8 {[%emt 0:00:43]} 20. g4 {[%emt 0:09:09]} Rf7 {[%emt 0:03:35]} 21. Rf2 {[%emt 0:00:22]} Nf6 {[%emt 0:06:47]} 22. Qe3 {[%emt 0:00:59]} Bxg4 {[%emt 0:03:15]} 23. fxg4 {[%emt 0:00:49]} Nxg4 {[%emt 0:00:03]} 24. Rxf7 {[%emt 0:00:33]} Qxf7 {[%emt 0:00:01]} 25. Rf1 {[%emt 0:05:23]} Nxe3 {[%emt 0:01:05]} 26. Rxf7 {[%emt 0:00:04]} Kxf7 {[%emt 0:00:02]} 27. Bxe3 {[%emt 0:00:07]} Kf6 {[%emt 0:00:32]} 28. Kf2 {[%emt 0:02:19]} g5 {[%emt 0:00:27]} 29. Kf3 {[%emt 0:01:24]} h5 {[%emt 0:01:22]} 30. Ne1 {[%emt 0:12:56]} Kf5 {[%emt 0:02:57] Ke4+} 1/2-1/2

[Event "Commonwealth Open 2019"]
[Site "Delhi"]
[Date "2019.07.07"]
[Round "9.5"]
[White "Saravana, Krishnan P."]
[Black "Deepan, Chakkravarthy J."]
[Result "0-1"]
[ECO "B31"]
[WhiteElo "2290"]
[BlackElo "2557"]
[Annotator "ChessBase"]
[PlyCount "124"]
[EventDate "2019.06.30"]
[EventType "swiss"]
[EventCountry "IND"]
[SourceTitle "playchess.com"]
[Source "ChessBase"]
[SourceQuality "1"]
[TimeControl "5400+30"]

1. e4 {[%emt 0:00:00]} c5 {[%emt 0:00:00]} 2. Nf3 {[%emt 0:00:00]} Nc6 {[%emt 0:00:00]} 3. Bb5 {[%emt 0:00:39]} g6 {[%emt 0:01:02]} 4. c3 {[%emt 0:00:30]} Nf6 {[%emt 0:02:25]} 5. Qe2 {[%emt 0:01:52]} Bg7 {[%emt 0:00:20]} 6. O-O {[%emt 0:01:41]} e5 {[%emt 0:01:10]} 7. d4 {[%emt 0:09:27]} cxd4 {[%emt 0:00:13]} 8. cxd4 {[%emt 0:00:09]} exd4 {[%emt 0:00:07]} 9. Bg5 {[%emt 0:02:16]} Qb6 {[%emt 0:00:15]} 10. Nbd2 {[%emt 0:08:55]} O-O {[%emt 0:00:11]} 11. Rac1 {[%emt 0:03:56]} d6 {[%emt 0:11:11]} 12. Bf4 {[%emt 0:05:43]} Rd8 {[%emt 0:12:12]} 13. a4 {[%emt 0:15:51]} Nh5 {[%emt 0:15:19]} 14. Bg5 {[%emt 0:00:20]} Re8 {[%emt 0:00:02]} 15. Nc4 {[%emt 0:03:10]} Qc7 {[%emt 0:00:24]} 16. Bd2 {[%emt 0:02:46]} d5 {[%emt 0:07:32]} 17. Na5 {[%emt 0:00:42]} Bd7 {[%emt 0:00:38]} 18. e5 {[%emt 0:01:36]} Qb6 {[%emt 0:10:07]} 19. Rfe1 {[%emt 0:08:07]} a6 {[%emt 0:17:20]} 20. Bxc6 {[%emt 0:03:32]} bxc6 {[%emt 0:00:01]} 21. b4 {[%emt 0:00:19]} Bf8 {[%emt 0:00:09]} 22. Nb3 {[%emt 0:02:57]} Bxb4 {[%emt 0:00:28]} 23. a5 {[%emt 0:00:55]} Qb8 {[%emt 0:00:16]} 24. Bxb4 {[%emt 0:01:09]} Qxb4 {[%emt 0:00:02]} 25. Nfxd4 {[%emt 0:00:12]} f6 {[%emt 0:04:01]} 26. e6 {[%emt 0:03:32]} Bxe6 {[%emt 0:00:44]} 27. Nxe6 {[%emt 0:09:21]} Qxb3 {[%emt 0:00:08]} 28. Qd2 {[%emt 0:00:09]} Qb7 {[%emt 0:02:33]} 29. h3 {[%emt 0:00:15]} Ng7 {[%emt 0:01:01]} 30. Nc5 {[%emt 0:01:18]} Qa7 {[%emt 0:00:40]} 31. Re2 Re4 32. Rxe4 {[%emt 0:01:30]} Rd8 33. Re8+ Rxe8 {[%emt 0:02:20]} 34. Qd3 {[%emt 0:00:46]} Ne6 {[%emt 0:01:38]} 35. Qxa6 {[%emt 0:06:10]} Qxa6 36. Nxa6 {[%emt 0:00:02]} Nd4 {[%emt 0:01:08]} 37. Rb1 {[%emt 0:00:23]} Ra8 {[%emt 0:02:50]} 38. Rb8+ {[%emt 0:00:13]} Rxb8 {[%emt 0:00:05]} 39. Nxb8 {[%emt 0:00:03]} c5 {[%emt 0:03:22]} 40. a6 {[%emt 0:00:04]} Nb5 {[%emt 0:00:14]} 41. Nc6 {[%emt 0:00:04]} Kf7 {[%emt 0:00:37]} 42. a7 {[%emt 0:01:12]} Nc7 {[%emt 0:00:31]} 43. Kf1 {[%emt 0:00:41]} Ke6 {[%emt 0:00:13]} 44. Ke2 {[%emt 0:01:29]} Kd6 {[%emt 0:00:51]} 45. Nb8 {[%emt 0:00:20]} Na8 {[%emt 0:03:03]} 46. f4 {[%emt 0:00:21]} f5 {[%emt 0:00:15]} 47. g4 {[%emt 0:00:35]} h6 {[%emt 0:02:39]} 48. Kd3 {[%emt 0:00:35]} Nb6 {[%emt 0:00:12]} 49. Kc3 {[%emt 0:01:35]} Kc7 {[%emt 0:00:50]} 50. g5 {[%emt 0:00:46]} h5 {[%emt 0:01:13]} 51. Na6+ {[%emt 0:00:49]} Kc6 {[%emt 0:00:11]} 52. Nb8+ {[%emt 0:02:24]} Kd6 {[%emt 0:02:21]} 53. Kd3 {[%emt 0:00:23]} d4 {[%emt 0:00:20]} 54. Na6 {[%emt 0:00:39]} Kc6 {[%emt 0:00:08]} 55. Nb8+ {[%emt 0:01:46]} Kb7 {[%emt 0:00:31]} 56. a8=Q+ {[%emt 0:00:05]} Kxa8 {[%emt 0:00:05]} 57. Nc6 {[%emt 0:00:23]} Nd5 {[%emt 0:00:05]} 58. Ne5 {[%emt 0:02:54]} Nxf4+ {[%emt 0:00:05]} 59. Kc4 {[%emt 0:00:03]} d3 {[%emt 0:00:20]} 60. Nf3 {[%emt 0:00:45]} Nxh3 {[%emt 0:00:33]} 61. Kxd3 {[%emt 0:00:03]} Kb7 {[%emt 0:00:30]} 62. Ke3 {[%emt 0:00:21]} Kc7 {[%emt 0:00:23]} 0-1

[Event "Commonwealth Open 2019"]
[Site "Delhi"]
[Date "2019.07.07"]
[Round "9.6"]
[White "Debashis, Das"]
[Black "Bhambure, Shantanu"]
[Result "1-0"]
[ECO "E21"]
[WhiteElo "2544"]
[BlackElo "2248"]
[Annotator "ChessBase"]
[PlyCount "59"]
[EventDate "2019.06.30"]
[EventType "swiss"]
[EventCountry "IND"]
[SourceTitle "playchess.com"]
[Source "ChessBase"]
[SourceQuality "1"]
[TimeControl "5400+30"]

1. Nf3 {[%emt 0:00:00]} Nf6 {[%emt 0:00:00]} 2. c4 {[%emt 0:00:03]} e6 {[%emt 0:00:17]} 3. d4 {[%emt 0:01:17]} b6 {[%emt 0:00:18]} 4. Nc3 {[%emt 0:00:25]} Bb4 {[%emt 0:01:18]} 5. e3 {[%emt 0:00:39]} Bb7 {[%emt 0:00:49]} 6. Bd3 {[%emt 0:00:08]} O-O {[%emt 0:00:22]} 7. O-O {[%emt 0:00:07]} d5 {[%emt 0:00:35]} 8. cxd5 {[%emt 0:00:19]} exd5 {[%emt 0:00:07]} 9. Ne5 {[%emt 0:01:35]} Bd6 {[%emt 0:02:07]} 10. f4 {[%emt 0:00:25]} c5 {[%emt 0:00:51]} 11. Bd2 {[%emt 0:01:58]} Nc6 {[%emt 0:01:41]} 12. Ne2 {[%emt 0:00:15]} Ne4 {[%emt 0:11:52]} 13. Bc3 {[%emt 0:01:38]} Nxc3 {[%emt 0:08:50]} 14. bxc3 {[%emt 0:00:09]} f6 {[%emt 0:02:02]} 15. Nxc6 {[%emt 0:00:55]} Bxc6 {[%emt 0:00:02]} 16. Qc2 {[%emt 0:01:29]} h6 {[%emt 0:06:19]} 17. Ng3 {[%emt 0:00:38]} f5 {[%emt 0:07:33]} 18. Bxf5 {[%emt 0:04:59]} Qf6 {[%emt 0:01:44]} 19. Rf3 {[%emt 0:02:51]} Be8 {[%emt 0:03:11]} 20. Raf1 {[%emt 0:03:54]} Bf7 {[%emt 0:02:41]} 21. Qd2 {[%emt 0:04:57]} Rfe8 {[%emt 0:05:22]} 22. Bb1 {[%emt 0:05:08]} cxd4 {[%emt 0:00:57]} 23. cxd4 {[%emt 0:04:55]} Rac8 {[%emt 0:08:32]} 24. Kh1 {[%emt 0:10:46]} Rc4 {[%emt 0:02:34]} 25. Nf5 {[%emt 0:07:00]} Bf8 {[%emt 0:02:03]} 26. g4 {[%emt 0:01:54]} Qe6 {[%emt 0:04:30]} 27. g5 {[%emt 0:01:51]} h5 {[%emt 0:01:48]} 28. Nxg7 {[%emt 0:05:35]} Bxg7 {[%emt 0:02:37]} 29. f5 {[%emt 0:00:04]} Qd6 {[%emt 0:01:25]} 30. f6 {[%emt 0:00:32]} 1-0

[Event "Commonwealth Open 2019"]
[Site "Delhi"]
[Date "2019.07.07"]
[Round "9.7"]
[White "Vaishali, R."]
[Black "Kunte, Abhijit"]
[Result "0-1"]
[ECO "C77"]
[WhiteElo "2338"]
[BlackElo "2478"]
[Annotator "ChessBase"]
[PlyCount "82"]
[EventDate "2019.06.30"]
[EventType "swiss"]
[EventCountry "IND"]
[SourceTitle "playchess.com"]
[Source "ChessBase"]
[SourceQuality "1"]
[TimeControl "5400+30"]

1. e4 {[%emt 0:00:00]} e5 {[%emt 0:01:49]} 2. Nf3 {[%emt 0:00:00]} Nc6 {[%emt 0:00:04]} 3. Bb5 {[%emt 0:00:02]} a6 {[%emt 0:00:05]} 4. Ba4 {[%emt 0:00:03]} Nf6 {[%emt 0:00:06]} 5. d3 {[%emt 0:00:05]} d6 {[%emt 0:01:34]} 6. c3 {[%emt 0:00:18]} Be7 {[%emt 0:02:14]} 7. O-O {[%emt 0:00:22]} O-O {[%emt 0:00:06]} 8. Re1 {[%emt 0:00:29]} Re8 {[%emt 0:00:23]} 9. Nbd2 {[%emt 0:00:16]} Bf8 {[%emt 0:00:53]} 10. Nf1 {[%emt 0:01:44]} h6 {[%emt 0:00:09]} 11. Ng3 {[%emt 0:00:22]} Bd7 {[%emt 0:08:08]} 12. h3 {[%emt 0:02:12]} b5 {[%emt 0:05:55]} 13. Bc2 {[%emt 0:00:09]} a5 {[%emt 0:00:10]} 14. a4 {[%emt 0:04:05]} b4 {[%emt 0:00:06]} 15. d4 {[%emt 0:04:21]} bxc3 {[%emt 0:06:08]} 16. bxc3 {[%emt 0:00:07]} exd4 {[%emt 0:00:05]} 17. cxd4 {[%emt 0:00:36]} Nb4 {[%emt 0:00:07]} 18. Bb1 {[%emt 0:17:53]} c5 {[%emt 0:11:42]} 19. Bb2 {[%emt 0:04:29]} cxd4 {[%emt 0:06:29]} 20. Qxd4 {[%emt 0:07:18]} Rc8 {[%emt 0:08:03]} 21. Qd2 {[%emt 0:06:07]} Be6 {[%emt 0:11:09]} 22. Nd4 {[%emt 0:04:59]} Nd7 {[%emt 0:00:10]} 23. Ngf5 {[%emt 0:11:23]} Ne5 {[%emt 0:09:30]} 24. Ra3 {[%emt 0:13:32]} Bxf5 {[%emt 0:01:02]} 25. Nxf5 {[%emt 0:01:05]} Re6 {[%emt 0:00:05]} 26. Rg3 {[%emt 0:03:07]} Rg6 {[%emt 0:06:53]} 27. Bd4 {[%emt 0:06:20]} Rxg3 {[%emt 0:01:03]} 28. Nxg3 {[%emt 0:00:09]} g6 {[%emt 0:00:20]} 29. f4 {[%emt 0:01:30]} Nc4 {[%emt 0:01:30]} 30. Qf2 {[%emt 0:03:00]} Bg7 {[%emt 0:05:22]} 31. Kh2 {[%emt 0:03:36]} Bxd4 {[%emt 0:02:39]} 32. Qxd4 {[%emt 0:00:02]} Na3 {[%emt 0:00:05]} 33. Rd1 {[%emt 0:02:54]} Rc4 {[%emt 0:01:51]} 34. Qa7 {[%emt 0:01:43]} Nxb1 {[%emt 0:01:26]} 35. Rxb1 {[%emt 0:00:01]} h5 {[%emt 0:00:05]} 36. Qe3 {[%emt 0:02:09]} Rd4 {[%emt 0:03:00]} 37. Ne2 {[%emt 0:00:18]} h4 {[%emt 0:01:10]} 38. Nc3 {[%emt 0:00:41]} Qe7 {[%emt 0:00:29]} 39. Rd1 {[%emt 0:01:13]} d5 {[%emt 0:00:31]} 40. Kh1 {[%emt 0:00:44]} dxe4 {[%emt 0:04:02]} 41. Nxe4 {[%emt 0:00:30]} Qe6 {[%emt 0:00:05]} 0-1

[Event "Commonwealth Open 2019"]
[Site "Delhi"]
[Date "2019.07.07"]
[Round "9.8"]
[White "Karthikeyan, P.."]
[Black "Navalgund, Niranjan"]
[Result "1-0"]
[ECO "B27"]
[WhiteElo "2445"]
[BlackElo "2326"]
[Annotator "NA"]
[PlyCount "83"]
[EventDate "2019.06.30"]
[EventType "swiss"]
[EventCountry "IND"]
[SourceTitle "playchess.com"]
[Source "ChessBase"]
[SourceQuality "1"]
[TimeControl "5400+30"]

1. e4 {[%emt 0:00:04]} c5 {[%emt 0:00:00]} 2. Nf3 {[%emt 0:00:08]} g6 {[%emt 0:00:00]} 3. d4 {[%emt 0:01:23]} cxd4 {[%emt 0:00:00]} 4. Qxd4 {[%emt 0:00:16]} Nf6 {[%emt 0:01:12]} 5. e5 {[%emt 0:00:02]} Nc6 {[%emt 0:00:29]} 6. Qa4 {[%emt 0:00:03]} Nd5 {[%emt 0:03:00]} 7. Qe4 {[%emt 0:00:03]} Nc7 {[%emt 0:02:52]} 8. Nc3 {[%emt 0:02:06]} Bg7 {[%emt 0:00:50]} 9. Bf4 {[%emt 0:00:43]} O-O {[%emt 0:20:38]} 10. O-O-O {[%emt 0:01:30]} f5 {[%emt 0:06:21]} 11. exf6 {[%emt 0:03:41]} Bxf6 {[%emt 0:02:34]} 12. Bc4+ {[%emt 0:06:40]} e6 {[%emt 0:00:42]} 13. Bd6 {[%emt 0:03:31]} Be7 {[%emt 0:07:18]} 14. Bg3 {[%emt 0:04:34]} d5 {[%emt 0:08:40]} 15. Qe3 {[%emt 0:04:17]} Bf6 {[%emt 0:07:21]} 16. h4 {[%emt 0:03:56]} Ne7 {[%emt 0:01:30]} 17. Qc5 {[%emt 0:11:20]} Na6 {[%emt 0:03:13]} 18. Bxa6 {[%emt 0:01:39]} bxa6 {[%emt 0:00:05]} 19. Bc7 {[%emt 0:12:38]} Qe8 {[%emt 0:00:34]} 20. Be5 {[%emt 0:00:19]} Bd7 {[%emt 0:09:13]} 21. Bxf6 {[%emt 0:02:15]} Rxf6 {[%emt 0:01:56]} 22. Ne5 {[%emt 0:00:24]} Nc6 {[%emt 0:05:44]} 23. Ne4 {[%emt 0:02:50]} Rf8 {[%emt 0:10:13]} 24. Nd6 {[%emt 0:02:07]} Qe7 {[%emt 0:00:03]} 25. Nxc6 {[%emt 0:01:12]} Bxc6 {[%emt 0:00:03]} 26. Qxc6 {[%emt 0:00:38]} Rad8 {[%emt 0:01:11]} 27. Nb7 {[%emt 0:03:22]} Rc8 {[%emt 0:00:15]} 28. Qxa6 {[%emt 0:15:39]} Rxf2 {[%emt 0:00:03]} 29. Rd2 {[%emt 0:01:35]} Rxd2 {[%emt 0:01:29]} 30. Kxd2 {[%emt 0:01:07]} Qb4+ {[%emt 0:00:08]} 31. Kc1 {[%emt 0:00:47]} Qe4 {[%emt 0:00:14]} 32. c3 {[%emt 0:00:51]} d4 {[%emt 0:02:07]} 33. Nd6 {[%emt 0:00:42]} Qe3+ {[%emt 0:01:58]} 34. Kb1 {[%emt 0:00:06]} Rb8 {[%emt 0:00:29]} 35. cxd4 {[%emt 0:03:02]} Qxd4 {[%emt 0:02:28]} 36. Nc4 {[%emt 0:00:20]} Qe4+ {[%emt 0:01:26]} 37. Ka1 {[%emt 0:00:19]} Rf8 {[%emt 0:00:29]} 38. a3 {[%emt 0:04:34]} Rf2 {[%emt 0:00:44]} 39. Rd1 {[%emt 0:00:17]} Qe2 {[%emt 0:01:23]} 40. Rd8+ {[%emt 0:00:23]} Kg7 {[%emt 0:00:08]} 41. Qxa7+ {[%emt 0:00:47]} Rf7 {[%emt 0:00:03]} 42. Qd4+ {[%emt 0:00:14]} 1-0